[Event "ETCC Women 2013"]
[Site "Warsaw"]
[Date "2013.11.15"]
[Round "7"]
[White "Berke, Ana"]
[Black "Thuerig, Catherine"]
[Result "0-1"]
[ECO "B14"]
[WhiteElo "2139"]
[BlackElo "1997"]
[PlyCount "168"]
[EventDate "2013.??.??"]
[EventCountry "POL"]
[WhiteTeam "Croatia"]
[BlackTeam "Switzerland"]
[WhiteTeamCountry "CRO"]
[BlackTeamCountry "SUI"]
[TimeControl "40/5400+30:1800+30"]

1. e4 {[%emt 0:00:00]} c6 {[%emt 0:00:00]} 2. d4 {[%emt 0:00:00]} d5 {[%emt 0:
00:00]} 3. exd5 {[%emt 0:00:00]} cxd5 {[%emt 0:00:00]} 4. c4 {[%emt 0:00:00]}
Nf6 {[%emt 0:00:00]} 5. Nc3 {[%emt 0:00:00]} e6 {[%emt 0:00:00]} 6. Nf3 {[%emt
0:00:25]} Bb4 {[%emt 0:00:13]} 7. cxd5 {[%emt 0:00:19]} Nxd5 {[%emt 0:00:11]}
8. Bd2 {[%emt 0:00:15]} Nc6 {[%emt 0:00:35]} 9. Bd3 {[%emt 0:00:11]} Be7 {
[%emt 0:01:05]} 10. O-O {[%emt 0:01:22]} Ndb4 {[%emt 0:03:45]} 11. Bf4 {[%emt
0:17:51]} Nxd3 {[%emt 0:07:04]} 12. Qxd3 {[%emt 0:00:18]} O-O {[%emt 0:06:34]}
13. a3 {[%emt 0:03:06]} a6 {[%emt 0:02:56]} 14. Rad1 {[%emt 0:04:23]} Bd6 {
[%emt 0:08:25]} 15. Ng5 {[%emt 0:07:29]} g6 {[%emt 0:02:34]} 16. Bc1 {[%emt 0:
05:44]} e5 {[%emt 0:03:25]} 17. dxe5 {[%emt 0:11:43]} Bxe5 {[%emt 0:01:22]} 18.
Qe4 {[%emt 0:01:37]} Qe8 {[%emt 0:08:56]} 19. Rfe1 {[%emt 0:06:00]} f6 {[%emt
0:02:44]} 20. Nf3 {[%emt 0:17:23]} Bf5 {[%emt 0:03:19]} 21. Qc4+ {[%emt 0:01:
49]} Be6 {[%emt 0:02:09]} 22. Qe2 {[%emt 0:01:48]} Qf7 {[%emt 0:03:29]} 23.
Nxe5 {[%emt 0:01:15]} Nxe5 {[%emt 0:04:06]} 24. f4 {[%emt 0:02:29]} Bg4 {[%emt
0:03:26]} 25. Qe3 {[%emt 0:02:40]} Nc4 {[%emt 0:04:38]} 26. Qc5 {[%emt 0:07:23]
} Rfc8 {[%emt 0:04:59]} 27. Qb4 {[%emt 0:03:01]} a5 {[%emt 0:01:54]} 28. Qb5 {
[%emt 0:00:35]} Bxd1 {[%emt 0:02:03]} 29. Rxd1 {[%emt 0:00:07]} Rc6 {[%emt 0:
01:50]} 30. b3 {[%emt 0:01:20]} Nd6 {[%emt 0:03:22]} 31. Qd5 {[%emt 0:02:29]}
Rac8 {[%emt 0:03:35]} 32. Bb2 {[%emt 0:00:30]} Qxd5 {[%emt 0:01:52]} 33. Nxd5 {
[%emt 0:00:45]} Kf7 {[%emt 0:02:33]} 34. Nxf6 {[%emt 0:00:54]} h5 {[%emt 0:02:
08]} 35. g4 {[%emt 0:00:34]} hxg4 {[%emt 0:00:43]} 36. Nxg4 {[%emt 0:00:08]}
Ke6 {[%emt 0:01:55]} 37. Re1+ {[%emt 0:00:46]} Kf5 {[%emt 0:01:16]} 38. h3 {
[%emt 0:00:47]} Ne4 {[%emt 0:04:18]} 39. Be5 {[%emt 0:00:36]} Rc1 {[%emt 0:00:
11]} 40. Ne3+ {[%emt 0:00:00]} Ke6 {[%emt 0:00:00]} 41. Rxc1 {[%emt 0:07:54]}
Rxc1+ {[%emt 0:00:40]} 42. Kg2 {[%emt 0:00:11]} Rb1 {[%emt 0:01:14]} 43. Nc4 {
[%emt 0:02:26]} Rxb3 {[%emt 0:02:53]} 44. Nxa5 {[%emt 0:00:33]} Rg3+ {[%emt 0:
00:28]} 45. Kh2 {[%emt 0:00:55]} b5 {[%emt 0:00:41]} 46. Nc6 {[%emt 0:01:20]}
Rxa3 {[%emt 0:04:01]} 47. Nd4+ {[%emt 0:01:37]} Kf7 {[%emt 0:00:51]} 48. Nxb5 {
[%emt 0:00:36]} Ra2+ {[%emt 0:00:28]} 49. Kg1 {[%emt 0:00:28]} Nf2 {[%emt 0:02:
25]} 50. h4 {[%emt 0:05:09]} Nd3 {[%emt 0:01:24]} 51. Nd4 {[%emt 0:06:04]} Ra4
{[%emt 0:04:09]} 52. Nf3 {[%emt 0:03:23]} Nxf4 {[%emt 0:01:41]} 53. Kh2 {[%emt
0:01:13]} Ne6 {[%emt 0:07:01]} 54. Kg3 {[%emt 0:00:19]} Ng7 {[%emt 0:01:05]}
55. Ng5+ {[%emt 0:00:37]} Kg8 {[%emt 0:00:16]} 56. Nf3 {[%emt 0:00:46]} Nf5+ {
[%emt 0:00:44]} 57. Kh3 {[%emt 0:00:31]} Kf8 {[%emt 0:00:45]} 58. Bf6 {[%emt 0:
01:16]} Kf7 {[%emt 0:00:28]} 59. Bg5 {[%emt 0:00:40]} Ke6 {[%emt 0:00:25]} 60.
Kg2 {[%emt 0:02:34]} Ng7 {[%emt 0:01:38]} 61. Kg3 {[%emt 0:01:03]} Nh5+ {[%emt
0:00:10]} 62. Kf2 {[%emt 0:00:29]} Kf5 {[%emt 0:02:49]} 63. Ke3 {[%emt 0:00:46]
} Ra3+ {[%emt 0:01:03]} 64. Kf2 {[%emt 0:00:24]} Ke4 {[%emt 0:04:06]} 65. Nd2+
{[%emt 0:00:17]} Kf5 {[%emt 0:01:16]} 66. Nf3 {[%emt 0:00:08]} Ke4 {[%emt 0:01:
37]} 67. Nd2+ {[%emt 0:00:07]} Kf5 {[%emt 0:00:04]} 68. Nf3 {[%emt 0:00:04]}
Ra2+ {[%emt 0:00:33]} 69. Ke3 {[%emt 0:00:10]} Ra3+ {[%emt 0:00:06]} 70. Kf2 {
[%emt 0:00:03]} Nf4 {[%emt 0:01:09]} 71. Bh6 {[%emt 0:03:53]} Ra2+ {[%emt 0:01:
00]} 72. Ke3 {[%emt 0:00:18]} Ng2+ {[%emt 0:00:49]} 73. Kd4 {[%emt 0:01:35]}
Ra4+ {[%emt 0:00:06]} 74. Kd3 {[%emt 0:00:28]} Nxh4 {[%emt 0:00:12]} 75. Nd4+ {
[%emt 0:00:27]} Kg4 {[%emt 0:00:17]} 76. Ne6 {[%emt 0:00:27]} Nf5 {[%emt 0:00:
30]} 77. Bc1 {[%emt 0:00:16]} Ra6 {[%emt 0:00:51]} 78. Nc5 {[%emt 0:00:29]} Rc6
{[%emt 0:00:33]} 79. Kc4 {[%emt 0:00:19]} Rc8 {[%emt 0:00:49]} 80. Kd5 {[%emt
0:00:38]} Ng3 {[%emt 0:01:25]} 81. Bb2 {[%emt 0:00:18]} Ne2 {[%emt 0:00:39]}
82. Bf6 {[%emt 0:00:35]} Nf4+ {[%emt 0:00:48]} 83. Kd4 {[%emt 0:00:36]} Kf5 {
[%emt 0:00:27]} 84. Nd7 {[%emt 0:00:40]} Rc7 {[%emt 0:00:24]} 0-1

[Event "ETCC Women 2013"]
[Site "Warsaw"]
[Date "2013.11.15"]
[Round "7"]
[White "Bhatia, Kanwal K"]
[Black "Gurcan, Aytolun"]
[Result "1-0"]
[ECO "B22"]
[WhiteElo "2039"]
[BlackElo "1745"]
[PlyCount "137"]
[EventDate "2013.??.??"]
[EventCountry "POL"]
[WhiteTeam "England"]
[BlackTeam "Turkey"]
[WhiteTeamCountry "ENG"]
[BlackTeamCountry "TUR"]
[TimeControl "40/5400+30:1800+30"]

1. e4 {[%emt 0:00:00]} c5 {[%emt 0:00:00]} 2. c3 {[%emt 0:00:00]} d5 {[%emt 0:
00:00]} 3. exd5 {[%emt 0:00:00]} Qxd5 {[%emt 0:00:00]} 4. d4 {[%emt 0:00:00]}
Nf6 {[%emt 0:00:00]} 5. Nf3 {[%emt 0:00:00]} Bg4 {[%emt 0:00:15]} 6. dxc5 {
[%emt 0:00:25]} Qxc5 {[%emt 0:01:49]} 7. Na3 {[%emt 0:00:35]} a6 {[%emt 0:01:
01]} 8. h3 {[%emt 0:01:36]} Bh5 {[%emt 0:01:08]} 9. Be3 Qc7 10. g4 {[%emt 0:02:
30]} Bg6 {[%emt 0:00:40]} 11. Bg2 {[%emt 0:00:10]} e6 {[%emt 0:11:02]} 12. O-O
{[%emt 0:11:04]} Nbd7 {[%emt 0:05:05]} 13. Qa4 {[%emt 0:04:29]} Rc8 {[%emt 0:
03:31]} 14. Bf4 {[%emt 0:08:14]} Bd6 {[%emt 0:03:53]} 15. Bxd6 {[%emt 0:00:11]}
Qxd6 {[%emt 0:00:16]} 16. Rad1 {[%emt 0:00:42]} Qc7 {[%emt 0:00:52]} 17. Qd4 {
[%emt 0:25:39]} O-O {[%emt 0:07:50]} 18. Qd6 {[%emt 0:03:18]} Nc5 {[%emt 0:03:
41]} 19. Ne5 {[%emt 0:07:33]} Na4 {[%emt 0:34:28]} 20. Nxg6 {[%emt 0:04:57]}
hxg6 {[%emt 0:02:33]} 21. Qxc7 {[%emt 0:01:55]} Rxc7 {[%emt 0:00:02]} 22. Rd2 {
[%emt 0:00:17]} Nd5 {[%emt 0:02:36]} 23. Bxd5 {[%emt 0:06:19]} exd5 {[%emt 0:
00:03]} 24. Rb1 {[%emt 0:00:15]} Rd8 {[%emt 0:00:43]} 25. Rd4 {[%emt 0:01:53]}
b5 {[%emt 0:00:40]} 26. Nc2 {[%emt 0:00:43]} Rc4 {[%emt 0:04:25]} 27. Kf1 {
[%emt 0:01:28]} f6 {[%emt 0:04:57]} 28. Ke2 {[%emt 0:01:02]} Kf7 {[%emt 0:00:
29]} 29. Kd2 {[%emt 0:00:33]} Rxd4+ {[%emt 0:00:20]} 30. Nxd4 {[%emt 0:00:22]}
Rh8 {[%emt 0:00:48]} 31. b3 {[%emt 0:00:54]} Nc5 {[%emt 0:00:15]} 32. f3 {
[%emt 0:01:44]} Rxh3 {[%emt 0:00:48]} 33. Ke3 {[%emt 0:00:47]} Ne6 {[%emt 0:01:
13]} 34. Ne2 {[%emt 0:01:47]} Ng5 {[%emt 0:03:11]} 35. Rf1 {[%emt 0:00:49]} Rh8
{[%emt 0:04:42]} 36. Nf4 {[%emt 0:00:54]} Re8+ {[%emt 0:00:38]} 37. Kd4 {[%emt
0:01:10]} Rd8 {[%emt 0:00:56]} 38. Kc5 {[%emt 0:03:03]} Ne6+ {[%emt 0:01:39]}
39. Nxe6 {[%emt 0:00:05]} Kxe6 {[%emt 0:00:04]} 40. Re1+ {[%emt 0:00:00]} Kf7 {
[%emt 0:00:00]} 41. Re3 {[%emt 0:02:00]} Rh8 {[%emt 0:05:41]} 42. Kb6 {[%emt 0:
00:49]} b4 {[%emt 0:05:11]} 43. cxb4 {[%emt 0:01:14]} Rb8+ {[%emt 0:01:25]} 44.
Kxa6 {[%emt 0:02:42]} Rxb4 {[%emt 0:00:11]} 45. a3 {[%emt 0:01:57]} d4 {[%emt
0:01:15]} 46. Rd3 {[%emt 0:00:29]} Rb8 {[%emt 0:00:05]} 47. b4 {[%emt 0:00:20]}
Ke6 {[%emt 0:00:29]} 48. Ka7 {[%emt 0:04:22]} Rd8 {[%emt 0:00:27]} 49. b5 {
[%emt 0:01:22]} Kd5 {[%emt 0:02:44]} 50. a4 {[%emt 0:02:35]} Kc4 {[%emt 0:09:
15]} 51. Rd1 {[%emt 0:00:26]} Kc3 {[%emt 0:05:14]} 52. b6 {[%emt 0:01:32]} Kc2
{[%emt 0:01:36]} 53. Rh1 {[%emt 0:01:17]} Rd5 {[%emt 0:01:01]} 54. Ka6 {[%emt
0:03:46]} d3 {[%emt 0:00:32]} 55. b7 {[%emt 0:01:30]} Rd8 {[%emt 0:03:09]} 56.
Ka7 {[%emt 0:00:30]} d2 {[%emt 0:00:39]} 57. b8=Q {[%emt 0:00:37]} Rxb8 {[%emt
0:00:16]} 58. Kxb8 {[%emt 0:00:04]} d1=Q 59. Rxd1 {[%emt 0:00:05]} Kxd1 {[%emt
0:00:10]} 60. f4 {[%emt 0:01:38]} Ke2 {[%emt 0:00:19]} 61. a5 {[%emt 0:01:43]}
Kf3 {[%emt 0:00:07]} 62. a6 {[%emt 0:00:23]} Kxg4 {[%emt 0:00:14]} 63. a7 {
[%emt 0:00:10]} Kxf4 {[%emt 0:00:05]} 64. a8=Q {[%emt 0:00:04]} g5 {[%emt 0:00:
27]} 65. Qg2 {[%emt 0:00:35]} g4 {[%emt 0:00:33]} 66. Kc7 {[%emt 0:01:17]} f5 {
[%emt 0:00:16]} 67. Kd6 {[%emt 0:00:35]} g3 {[%emt 0:00:55]} 68. Qe2 {[%emt 0:
02:19]} g5 {[%emt 0:01:51]} 69. Ke6 {[%emt 0:00:38]} 1-0

[Event "ETCC Women 2013"]
[Site "Warsaw"]
[Date "2013.11.15"]
[Round "7"]
[White "Bojkovic, Natasa"]
[Black "Dolzhikova, Olga"]
[Result "1-0"]
[ECO "B00"]
[WhiteElo "2405"]
[BlackElo "2198"]
[PlyCount "93"]
[EventDate "2013.??.??"]
[EventCountry "POL"]
[WhiteTeam "Serbia"]
[BlackTeam "Norway"]
[WhiteTeamCountry "SRB"]
[BlackTeamCountry "NOR"]
[TimeControl "40/5400+30:1800+30"]

1. e4 {[%emt 0:00:00]} b6 {[%emt 0:00:00]} 2. d4 {[%emt 0:00:00]} Bb7 {[%emt 0:
00:00]} 3. Bd3 {[%emt 0:00:00]} e6 {[%emt 0:00:04]} 4. Nf3 {[%emt 0:04:42]} g6
{[%emt 0:00:17]} 5. Bg5 {[%emt 0:06:23]} Qc8 {[%emt 0:03:06]} 6. Nc3 {[%emt 0:
02:10]} Bg7 {[%emt 0:03:46]} 7. Qd2 {[%emt 0:06:28]} h6 {[%emt 0:02:17]} 8. Be3
{[%emt 0:05:46]} Ne7 {[%emt 0:02:15]} 9. O-O {[%emt 0:08:28]} d6 {[%emt 0:01:
46]} 10. h3 {[%emt 0:13:59]} Nd7 {[%emt 0:05:54]} 11. Nh2 {[%emt 0:00:26]} a6 {
[%emt 0:33:36]} 12. Ne2 {[%emt 0:07:13]} Nf6 {[%emt 0:08:34]} 13. f3 {[%emt 0:
00:46]} Kf8 {[%emt 0:04:26]} 14. Ng4 {[%emt 0:03:34]} Nfg8 {[%emt 0:08:00]} 15.
c4 {[%emt 0:01:57]} c5 {[%emt 0:02:34]} 16. d5 {[%emt 0:01:47]} exd5 {[%emt 0:
02:05]} 17. cxd5 {[%emt 0:00:33]} h5 {[%emt 0:05:15]} 18. Nh2 {[%emt 0:00:44]}
Nf6 {[%emt 0:00:11]} 19. f4 {[%emt 0:04:18]} Nd7 {[%emt 0:03:32]} 20. Nf3 {
[%emt 0:02:33]} f5 {[%emt 0:02:12]} 21. Ng5 {[%emt 0:08:32]} Nf6 {[%emt 0:01:
41]} 22. e5 {[%emt 0:12:18]} dxe5 {[%emt 0:04:34]} 23. d6 {[%emt 0:00:13]} Nc6
{[%emt 0:00:36]} 24. Bc4 {[%emt 0:05:30]} Na5 {[%emt 0:00:22]} 25. Be6 {[%emt
0:00:44]} Qc6 {[%emt 0:00:12]} 26. Rf2 {[%emt 0:00:10]} Nd5 {[%emt 0:01:38]}
27. Rc1 {[%emt 0:00:59]} Nxe3 {[%emt 0:01:02]} 28. Qxe3 {[%emt 0:00:19]} Qxd6 {
[%emt 0:00:17]} 29. Bb3 {[%emt 0:01:47]} Nxb3 {[%emt 0:00:51]} 30. Qxb3 {[%emt
0:00:22]} Bd5 {[%emt 0:01:27]} 31. Qc2 {[%emt 0:00:54]} Bf6 {[%emt 0:01:16]}
32. Rd1 {[%emt 0:00:38]} Qc6 {[%emt 0:00:59]} 33. Nc3 {[%emt 0:01:01]} Bg8 {
[%emt 0:00:40]} 34. Rfd2 {[%emt 0:00:53]} Be7 {[%emt 0:00:41]} 35. Nd5 {[%emt
0:00:27]} Bxd5 {[%emt 0:00:24]} 36. Rxd5 {[%emt 0:00:02]} exf4 {[%emt 0:00:45]}
37. Nf3 {[%emt 0:00:55]} Re8 {[%emt 0:00:33]} 38. Ne5 {[%emt 0:00:20]} Qe6 {
[%emt 0:00:18]} 39. Qc3 {[%emt 0:00:51]} Bf6 {[%emt 0:00:40]} 40. Nd7+ {[%emt
0:00:00]} Kf7 {[%emt 0:00:00]} 41. Nxf6 {[%emt 0:08:12]} Qe3+ {[%emt 0:08:12]}
42. Qxe3 {[%emt 0:00:06]} Rxe3 {[%emt 0:00:05]} 43. Nd7 {[%emt 0:01:10]} Rhe8 {
[%emt 0:01:35]} 44. Nxb6 {[%emt 0:01:37]} f3 {[%emt 0:01:20]} 45. Rd7+ {[%emt
0:11:20]} Kf8 {[%emt 0:00:34]} 46. gxf3 {[%emt 0:00:35]} Rxf3 {[%emt 0:00:38]}
47. Rh7 {[%emt 0:01:39]} 1-0

[Event "ETCC Women 2013"]
[Site "Warsaw"]
[Date "2013.11.15"]
[Round "7"]
[White "Brunello, Marina"]
[Black "Stetsko, Lanita"]
[Result "1/2-1/2"]
[ECO "C45"]
[WhiteElo "2248"]
[BlackElo "2226"]
[PlyCount "91"]
[EventDate "2013.??.??"]
[EventCountry "POL"]
[WhiteTeam "Italy"]
[BlackTeam "Belarus"]
[WhiteTeamCountry "ITA"]
[BlackTeamCountry "BLR"]
[TimeControl "40/5400+30:1800+30"]

1. e4 {[%emt 0:00:00]} e5 {[%emt 0:00:00]} 2. Nf3 {[%emt 0:00:00]} Nc6 {[%emt
0:00:00]} 3. d4 {[%emt 0:00:00]} exd4 {[%emt 0:00:00]} 4. Nxd4 {[%emt 0:00:00]}
Bc5 {[%emt 0:00:06]} 5. Nb3 {[%emt 0:00:00]} Bb6 {[%emt 0:00:18]} 6. Qe2 {
[%emt 0:00:00]} d6 {[%emt 0:01:00]} 7. Nc3 {[%emt 0:00:22]} Be6 {[%emt 0:00:35]
} 8. Be3 {[%emt 0:00:27]} Nf6 {[%emt 0:00:27]} 9. O-O-O {[%emt 0:01:12]} Qe7 {
[%emt 0:00:56]} 10. Kb1 {[%emt 0:04:53]} O-O-O {[%emt 0:02:12]} 11. Bxb6 {
[%emt 0:03:31]} axb6 {[%emt 0:03:05]} 12. Nd4 {[%emt 0:00:29]} Bd7 {[%emt 0:11:
50]} 13. f3 {[%emt 0:05:48]} Qe5 {[%emt 0:06:49]} 14. Nb3 {[%emt 0:08:44]} Be6
{[%emt 0:11:36]} 15. Qf2 {[%emt 0:07:04]} d5 {[%emt 0:07:39]} 16. exd5 {[%emt
0:02:32]} Nxd5 {[%emt 0:01:40]} 17. Nxd5 {[%emt 0:00:20]} Bxd5 {[%emt 0:02:02]}
18. Re1 {[%emt 0:06:32]} Bxb3 {[%emt 0:04:36]} 19. cxb3 {[%emt 0:07:34]} Qf5+ {
[%emt 0:03:46]} 20. Qc2 {[%emt 0:00:37]} Qxc2+ {[%emt 0:05:40]} 21. Kxc2 {
[%emt 0:00:16]} Nb4+ {[%emt 0:01:21]} 22. Kb1 {[%emt 0:00:29]} Rd2 {[%emt 0:02:
15]} 23. a3 {[%emt 0:04:54]} Nc6 {[%emt 0:06:53]} 24. Bc4 {[%emt 0:00:37]} f6 {
[%emt 0:00:24]} 25. Re2 {[%emt 0:01:42]} Rxe2 {[%emt 0:00:55]} 26. Bxe2 {[%emt
0:01:59]} Nd4 {[%emt 0:00:21]} 27. Bd1 {[%emt 0:04:19]} Re8 {[%emt 0:00:19]}
28. b4 {[%emt 0:00:33]} f5 {[%emt 0:04:50]} 29. f4 {[%emt 0:03:02]} Re3 {[%emt
0:04:06]} 30. Kc1 {[%emt 0:00:53]} Kd7 {[%emt 0:02:02]} 31. Kd2 {[%emt 0:00:44]
} Re4 {[%emt 0:00:13]} 32. Rf1 {[%emt 0:00:47]} Kd6 {[%emt 0:01:03]} 33. g3 {
[%emt 0:02:29]} g6 {[%emt 0:06:01]} 34. Bf3 {[%emt 0:04:21]} Nxf3+ {[%emt 0:06:
43]} 35. Rxf3 {[%emt 0:00:07]} Kd5 {[%emt 0:00:44]} 36. Rd3+ {[%emt 0:04:58]}
Rd4 {[%emt 0:01:56]} 37. Ke3 {[%emt 0:00:11]} Rxd3+ {[%emt 0:01:12]} 38. Kxd3 {
[%emt 0:00:05]} b5 {[%emt 0:02:41]} 39. b3 {[%emt 0:02:51]} c6 {[%emt 0:00:35]}
40. Ke3 {[%emt 0:00:00]} c5 {[%emt 0:00:00]} 41. bxc5 {[%emt 0:09:26]} Kxc5 {
[%emt 0:01:11]} 42. Kd3 {[%emt 0:00:04]} b4 {[%emt 0:01:00]} 43. a4 {[%emt 0:
00:34]} b6 {[%emt 0:00:28]} 44. Ke3 {[%emt 0:00:09]} Kd5 {[%emt 0:00:06]} 45.
Kd3 {[%emt 0:00:05]} Kc5 {[%emt 0:00:17]} 46. Ke3 {[%emt 0:00:11]} 1/2-1/2

[Event "ETCC Women 2013"]
[Site "Warsaw"]
[Date "2013.11.15"]
[Round "7"]
[White "Bulmaga, Irina"]
[Black "Goossens, Hanne"]
[Result "1-0"]
[ECO "B53"]
[WhiteElo "2399"]
[BlackElo "2069"]
[PlyCount "99"]
[EventDate "2013.??.??"]
[EventCountry "POL"]
[WhiteTeam "Romania"]
[BlackTeam "Belgium"]
[WhiteTeamCountry "ROU"]
[BlackTeamCountry "BEL"]
[TimeControl "40/5400+30:1800+30"]

1. e4 {[%emt 0:00:00]} c5 {[%emt 0:00:00]} 2. Nf3 {[%emt 0:00:00]} d6 {[%emt 0:
00:00]} 3. d4 {[%emt 0:00:00]} cxd4 {[%emt 0:00:00]} 4. Qxd4 {[%emt 0:00:00]}
Nc6 {[%emt 0:01:50]} 5. Bb5 {[%emt 0:00:22]} Qa5+ {[%emt 0:10:41]} 6. Nc3 {
[%emt 0:00:14]} Qxb5 {[%emt 0:01:01]} 7. Nxb5 {[%emt 0:00:21]} Nxd4 {[%emt 0:
00:05]} 8. Nfxd4 {[%emt 0:13:34]} Kd8 {[%emt 0:01:46]} 9. Bg5 {[%emt 0:05:51]}
Nf6 {[%emt 0:03:40]} 10. f3 {[%emt 0:02:20]} Bd7 {[%emt 0:02:45]} 11. Nc3 {
[%emt 0:01:24]} Rc8 {[%emt 0:03:54]} 12. O-O-O {[%emt 0:04:18]} Kc7 {[%emt 0:
08:10]} 13. Rhe1 {[%emt 0:11:19]} Kb8 {[%emt 0:06:02]} 14. Nb3 {[%emt 0:03:56]}
Be6 {[%emt 0:08:14]} 15. Nd5 {[%emt 0:04:01]} h6 {[%emt 0:05:04]} 16. Bh4 {
[%emt 0:13:04]} Rc4 {[%emt 0:09:19]} 17. Bxf6 {[%emt 0:04:21]} gxf6 {[%emt 0:
01:30]} 18. Nd4 {[%emt 0:00:18]} Bc8 {[%emt 0:05:56]} 19. b3 {[%emt 0:07:33]}
Rc5 {[%emt 0:00:18]} 20. Kb2 {[%emt 0:01:01]} Bd7 {[%emt 0:10:48]} 21. Nf5 {
[%emt 0:07:18]} Rxd5 {[%emt 0:02:36]} 22. Rxd5 {[%emt 0:00:09]} e6 {[%emt 0:00:
06]} 23. Rxd6 {[%emt 0:00:31]} Kc7 {[%emt 0:00:23]} 24. Rxd7+ {[%emt 0:00:50]}
Kxd7 {[%emt 0:00:15]} 25. Rd1+ {[%emt 0:00:19]} Kc7 {[%emt 0:00:56]} 26. Nd4 {
[%emt 0:03:08]} a6 {[%emt 0:01:05]} 27. Ne2 {[%emt 0:01:52]} Bd6 {[%emt 0:01:
12]} 28. c3 {[%emt 0:03:56]} Rg8 {[%emt 0:07:04]} 29. g3 {[%emt 0:00:12]} h5 {
[%emt 0:00:51]} 30. h4 {[%emt 0:04:29]} b6 {[%emt 0:05:36]} 31. Kc2 {[%emt 0:
00:09]} Bc5 {[%emt 0:00:30]} 32. a4 {[%emt 0:00:58]} a5 {[%emt 0:01:46]} 33.
Rb1 {[%emt 0:01:47]} Rd8 {[%emt 0:00:50]} 34. b4 {[%emt 0:00:54]} Be3 {[%emt 0:
01:35]} 35. Rd1 {[%emt 0:00:09]} Rg8 {[%emt 0:00:20]} 36. Rd3 {[%emt 0:00:24]}
Bh6 {[%emt 0:00:22]} 37. Kb3 {[%emt 0:00:53]} Bf8 {[%emt 0:00:27]} 38. f4 {
[%emt 0:00:31]} Be7 {[%emt 0:00:33]} 39. Kc4 {[%emt 0:00:19]} axb4 {[%emt 0:00:
58]} 40. cxb4 {[%emt 0:00:00]} Ra8 {[%emt 0:00:00]} 41. Kb5 {[%emt 0:05:33]}
Bd6 {[%emt 0:02:24]} 42. Nd4 {[%emt 0:03:56]} Rg8 {[%emt 0:03:07]} 43. Nc2 {
[%emt 0:03:39]} Ra8 {[%emt 0:08:55]} 44. Ne3 {[%emt 0:01:11]} Rb8 {[%emt 0:02:
17]} 45. Nc4 {[%emt 0:00:20]} Be7 {[%emt 0:00:38]} 46. Rc3 {[%emt 0:00:24]} Kb7
{[%emt 0:01:52]} 47. Nxb6 {[%emt 0:06:11]} Bd6 {[%emt 0:04:15]} 48. a5 {[%emt
0:00:52]} Rg8 {[%emt 0:01:53]} 49. a6+ {[%emt 0:00:33]} Kb8 {[%emt 0:00:31]}
50. a7+ {[%emt 0:00:15]} 1-0

[Event "ETCC Women 2013"]
[Site "Warsaw"]
[Date "2013.11.15"]
[Round "7"]
[White "Cemhan, Kardelen"]
[Black "Grigoryan, Meri"]
[Result "0-1"]
[ECO "B13"]
[WhiteElo "1993"]
[BlackElo "2039"]
[PlyCount "64"]
[EventDate "2013.??.??"]
[EventCountry "POL"]
[WhiteTeam "Turkey"]
[BlackTeam "England"]
[WhiteTeamCountry "TUR"]
[BlackTeamCountry "ENG"]
[TimeControl "40/5400+30:1800+30"]

1. e4 {[%emt 0:00:00]} c6 {[%emt 0:00:00]} 2. d4 {[%emt 0:00:00]} d5 {[%emt 0:
00:00]} 3. exd5 {[%emt 0:00:00]} cxd5 {[%emt 0:00:00]} 4. Bd3 {[%emt 0:00:00]}
Nc6 {[%emt 0:00:00]} 5. c3 {[%emt 0:00:04]} g6 {[%emt 0:02:05]} 6. Bf4 {[%emt
0:03:22]} Nh6 {[%emt 0:01:11]} 7. Nf3 {[%emt 0:03:03]} Bf5 {[%emt 0:00:40]} 8.
Bxf5 {[%emt 0:04:13]} gxf5 {[%emt 0:05:25]} 9. Nbd2 {[%emt 0:08:03]} e6 {[%emt
0:00:39]} 10. Ne5 {[%emt 0:08:50]} Nxe5 {[%emt 0:08:37]} 11. Bxe5 {[%emt 0:02:
42]} Rg8 {[%emt 0:06:43]} 12. h3 {[%emt 0:01:51]} Bd6 {[%emt 0:14:07]} 13. Bxd6
{[%emt 0:10:37]} Qxd6 {[%emt 0:00:02]} 14. Qh5 {[%emt 0:00:29]} Rg6 {[%emt 0:
06:12]} 15. Nf3 {[%emt 0:04:03]} Qf4 {[%emt 0:08:05]} 16. g3 {[%emt 0:08:34]}
Qe4+ {[%emt 0:06:54]} 17. Kd2 {[%emt 0:00:16]} Ng4 {[%emt 0:05:35]} 18. hxg4 {
[%emt 0:06:49]} Qxf3 {[%emt 0:00:12]} 19. Raf1 {[%emt 0:00:49]} Rxg4 {[%emt 0:
07:19]} 20. Qxh7 {[%emt 0:07:48]} O-O-O {[%emt 0:01:13]} 21. Rh4 {[%emt 0:04:
53]} Re4 {[%emt 0:06:34]} 22. Rxe4 {[%emt 0:01:11]} dxe4 {[%emt 0:02:31]} 23.
Qxf7 {[%emt 0:05:12]} Qd3+ {[%emt 0:08:16]} 24. Ke1 {[%emt 0:00:07]} Qb1+ {
[%emt 0:00:16]} 25. Ke2 {[%emt 0:00:09]} Qxb2+ {[%emt 0:01:51]} 26. Kd1 {[%emt
0:01:56]} Qb1+ {[%emt 0:01:02]} 27. Ke2 {[%emt 0:00:41]} Qd3+ {[%emt 0:00:23]}
28. Ke1 {[%emt 0:00:09]} Qxc3+ {[%emt 0:00:48]} 29. Ke2 {[%emt 0:00:26]} Qc4+ {
[%emt 0:02:44]} 30. Ke1 {[%emt 0:00:22]} Rxd4 {[%emt 0:02:27]} 31. Qf8+ {[%emt
0:02:42]} Rd8 {[%emt 0:00:06]} 32. Qa3 {[%emt 0:00:37]} Qc2 {[%emt 0:01:09]}
0-1